bitfinex/quotes_BTCUSD_20240717
["timestamp","ask_amount","ask_price","bid_price","bid_amount"]
[1721241715261,0.15809747,64602.0,64601.0,0.003913]
[1721241716902,0.15809747,64602.0,64601.0,0.002913]
[1721241717916,0.62247747,64602.0,64601.0,0.002913]
[1721241718095,0.93206447,64602.0,64601.0,0.002913]
[1721241719866,0.93206447,64602.0,64601.0,0.002613]
[1721241720502,0.62247747,64602.0,64601.0,0.002613]
[1721241722244,0.15809747,64602.0,64601.0,0.002613]
[1721241723410,0.31289047,64602.0,64601.0,0.002613]
[1721241723616,0.93206447,64602.0,64601.0,0.002613]
[1721241725787,0.62247747,64602.0,64601.0,0.002613]
[1721241726761,0.31289047,64602.0,64601.0,0.002613]
[1721241727397,0.62247747,64602.0,64601.0,0.002613]
[1721241729292,0.93206447,64602.0,64601.0,0.002613]
[1721241731161,0.93289447,64602.0,64601.0,0.002613]
[1721241732105,0.15892747,64602.0,64601.0,0.002613]
[1721241732951,0.31372047,64602.0,64601.0,0.002613]
[1721241733534,0.62330747,64602.0,64601.0,0.002613]
[1721241735319,0.93289447,64602.0,64601.0,0.002613]
[1721241739702,1.24248147,64602.0,64601.0,0.002613]
[1721241739900,1.29248147,64602.0,64601.0,0.002613]
[1721241740108,1.75645021,64602.0,64601.0,0.002613]
[1721241740681,1.85645021,64602.0,64601.0,0.002613]
[1721241741310,2.01079978,64602.0,64601.0,0.002613]
[1721241741732,2.01079978,64602.0,64601.0,0.000613]
[1721241741914,2.01579978,64602.0,64601.0,0.000613]
[1721241742454,2.02179978,64602.0,64601.0,0.000613]
[1721241742891,2.06302036,64602.0,64601.0,0.000613]
[1721241743326,2.07202036,64602.0,64601.0,0.001613]
[1721241743728,2.06302036,64602.0,64601.0,0.000613]
[1721241743943,2.05802036,64602.0,64601.0,0.000613]
[1721241744138,2.06802036,64602.0,64601.0,0.001613]
[1721241744373,2.05802036,64602.0,64601.0,0.000613]
[1721241744753,2.07702036,64602.0,64601.0,0.002613]
[1721241747145,2.38660736,64602.0,64601.0,0.002613]
[1721241750918,2.07702036,64602.0,64601.0,0.002613]
[1721241751135,1.59008379,64602.0,64601.0,0.002613]
[1721241751510,1.54008379,64602.0,64601.0,0.002613]
[1721241751737,1.51586321,64602.0,64601.0,0.002613]
[1721241752722,1.56586321,64602.0,64601.0,0.002613]
[1721241753518,1.51586321,64602.0,64601.0,0.002613]
[1721241754394,1.56586321,64602.0,64601.0,0.002613]
[1721241756387,1.59008241,64602.0,64601.0,0.002613]
[1721241756992,1.54008241,64602.0,64601.0,0.002613]
[1721241757197,1.39628241,64602.0,64601.0,0.002613]
[1721241757398,1.44262499,64602.0,64601.0,0.002613]
[1721241758566,1.39628241,64602.0,64601.0,0.002613]
[1721241759085,0.15834667,64602.0,64601.0,0.083213]
[1721241759375,0.49850747,64602.0,64601.0,0.002613]
[1721241759699,0.80809447,64602.0,64601.0,0.002613]
[1721241762171,0.49850747,64602.0,64601.0,0.002613]
[1721241762640,0.54486001,64602.0,64601.0,0.002613]
[1721241763474,0.49850747,64602.0,64601.0,0.002613]
[1721241764555,0.56805061,64602.0,64601.0,0.002613]
[1721241765370,0.49850747,64602.0,64601.0,0.002613]
[1721241765576,0.10367428,64602.0,64601.0,0.002613]
[1721241765774,0.08049069,64602.0,64601.0,0.002613]
[1721241765972,0.03412747,64602.0,64601.0,0.002613]
[1721241766980,0.01512747,64602.0,64601.0,0.000613]
[1721241767180,0.02412747,64602.0,64601.0,0.001613]
[1721241767380,0.03312747,64602.0,64601.0,0.002613]
[1721241772636,0.03312747,64602.0,64601.0,0.144013]
[1721241774071,0.03312747,64602.0,64601.0,0.45319074]
[1721241774268,0.01883,64602.0,64601.0,1.20089747]
[1721241774994,0.00983,64602.0,64601.0,1.19989747]
[1721241775150,0.00083,64602.0,64601.0,1.19889747]
[1721241775361,0.00083,64602.0,64601.0,1.20089747]
[1721241775576,0.00083,64602.0,64601.0,1.20189747]
[1721241775988,0.00083,64602.0,64601.0,1.2018926]
[1721241776347,0.00083,64602.0,64601.0,1.07337474]
[1721241776554,0.00083,64602.0,64601.0,1.51148348]
[1721241777708,0.00083,64602.0,64601.0,1.51147976]
[1721241779183,0.00083,64602.0,64601.0,1.51147825]
[1721241781512,0.00083,64602.0,64601.0,1.38296674]
[1721241781711,0.00083,64602.0,64601.0,1.51146693]
[1721241784759,0.00083,64602.0,64601.0,1.51146597]
[1721241785142,0.00083,64602.0,64601.0,1.5114661]
[1721241786959,0.00083,64602.0,64601.0,0.8922821]
[1721241787202,0.00083,64602.0,64601.0,0.29939474]
[1721241787402,0.00083,64602.0,64601.0,0.15799474]
[1721241789346,0.00083,64602.0,64601.0,0.003613]
[1721241791961,0.00083,64602.0,64601.0,0.91887874]
[1721241792162,0.00083,64602.0,64601.0,1.51178559]
[1721241793252,0.00083,64602.0,64601.0,1.82137759]
[1721241793451,0.00083,64602.0,64601.0,1.84437759]
[1721241793650,0.00083,64602.0,64601.0,1.51178559]
[1721241794005,0.00083,64602.0,64601.0,1.38126674]
[1721241794209,0.00083,64602.0,64601.0,1.50877322]
[1721241794434,0.00083,64602.0,64601.0,1.38226674]
[1721241794634,0.00083,64602.0,64601.0,1.53277309]
[1721241795035,0.00183,64602.0,64601.0,1.54077309]
[1721241795494,0.00283,64602.0,64601.0,1.54877309]
[1721241796456,0.00283,64602.0,64601.0,1.87681759]
[1721241796788,0.00283,64602.0,64601.0,2.05112461]
[1721241797187,0.00283,64602.0,64601.0,1.72985874]
[1721241797601,0.00283,64602.0,64601.0,2.05109485]
[1721241798857,0.00083,64602.0,64601.0,1.70150285]
[1721241799062,0.00083,64602.0,64601.0,1.73395888]
[1721241799262,0.00083,64602.0,64601.0,1.74795888]
[1721241799578,0.00083,64602.0,64601.0,1.72950939]
[1721241800044,0.00083,64602.0,64601.0,1.71477659]
[1721241800529,0.00083,64602.0,64601.0,1.72377932]
[1721241800774,0.00083,64602.0,64601.0,2.65777932]
[1721241800980,0.00083,64602.0,64601.0,2.14737132]
[1721241801744,0.00083,64602.0,64601.0,2.21137132]
[1721241802084,0.00083,64602.0,64601.0,2.16137132]
[1721241802285,0.00083,64602.0,64601.0,2.21137132]
[1721241802497,0.00083,64602.0,64601.0,3.02561462]
[1721241802835,0.00083,64602.0,64601.0,3.18621852]
[1721241803069,0.025,64622.0,64620.0,0.154748]
[1721241803277,0.025,64622.0,64621.0,0.28287989]
[1721241803585,0.025,64622.0,64621.0,1.05660307]
[1721241803784,0.025,64622.0,64621.0,1.08160307]
[1721241804042,0.025,64622.0,64621.0,1.39108991]
[1721241804418,0.026,64622.0,64621.0,1.39108991]
[1721241805087,0.026,64622.0,64621.0,1.40408991]
[1721241805289,0.026,64622.0,64621.0,1.40408712]
[1721241805492,0.026,64622.0,64621.0,1.09459112]
[1721241806080,0.025,64622.0,64621.0,1.08759112]
[1721241806524,0.025,64622.0,64621.0,1.08159112]
[1721241806738,0.025,64622.0,64621.0,0.33412974]
[1721241806941,0.025,64622.0,64621.0,0.78509707]
[1721241807532,0.025,64622.0,64621.0,0.78609707]
[1721241808952,0.025,64622.0,64621.0,0.47660107]
[1721241810108,0.025,64622.0,64621.0,0.47660929]
[1721241810630,0.025,64622.0,64621.0,0.48960929]
[1721241811018,0.025,64622.0,64621.0,0.33486129]
[1721241811625,0.025,64622.0,64621.0,0.48960929]
[1721241812536,0.025,64622.0,64621.0,0.33486129]
[1721241812754,0.025,64622.0,64621.0,0.18047955]
[1721241812951,0.025,64622.0,64621.0,0.052]
[1721241813159,0.03906935,64622.0,64621.0,0.15548842]
[1721241813352,0.03906935,64622.0,64621.0,0.027]
[1721241813749,0.03906935,64622.0,64621.0,0.30986669]
[1721241813950,0.03906935,64622.0,64621.0,0.46461469]
[1721241814548,0.025,64622.0,64621.0,0.46461469]
[1721241814726,0.025,64622.0,64621.0,0.46461091]
[1721241816233,0.025,64622.0,64621.0,0.46461094]
[1721241816813,0.025,64622.0,64621.0,0.52891094]
[1721241817043,0.025,64622.0,64621.0,0.46461094]
[1721241818484,0.025,64622.0,64621.0,0.33612974]
[1721241818689,0.025,64622.0,64621.0,0.46461047]
[1721241819492,0.025,64622.0,64621.0,0.46460958]
[1721241820120,0.025,64622.0,64621.0,0.77410558]
[1721241820684,0.025,64622.0,64621.0,0.30986158]
[1721241822638,0.025,64622.0,64621.0,0.30986203]
[1721241825506,0.025,64622.0,64621.0,0.77410603]
[1721241825663,0.025,64624.0,64623.0,0.154743]
[1721241825873,0.025,64624.0,64623.0,1.5206613]
[1721241826076,0.025,64624.0,64623.0,1.6038613]
[1721241826286,0.025,64624.0,64623.0,1.94738436]
[1721241826479,0.025,64624.0,64623.0,1.7362613]
[1721241826936,0.025,64624.0,64623.0,1.7462613]
[1721241827363,0.025,64624.0,64623.0,1.7502613]
[1721241827738,0.025,64624.0,64623.0,1.7632613]
[1721241827948,0.025,64624.0,64623.0,1.7772613]
[1721241828943,0.025,64624.0,64623.0,1.74925345]
[1721241829147,0.025,64624.0,64623.0,1.76325345]
[1721241829543,0.025,64624.0,64623.0,1.97437783]
[1721241829749,0.025,64624.0,64623.0,1.98437783]
[1721241829953,0.025,64624.0,64623.0,1.99837783]
[1721241830506,0.025,64624.0,64623.0,1.77757637]
[1721241832676,0.025,64624.0,64623.0,1.77756309]
[1721241833450,0.025,64624.0,64623.0,1.56644512]
[1721241834462,0.025,64624.0,64623.0,1.75913331]
[1721241835110,0.025,64624.0,64623.0,1.74513331]
[1721241835312,0.025,64624.0,64623.0,1.74511124]
[1721241835512,0.025,64624.0,64623.0,1.73111124]
[1721241835657,0.025,64624.0,64623.0,1.74511124]
[1721241836577,0.025,64624.0,64623.0,1.76353879]
[1721241836747,0.025,64624.0,64623.0,1.77753879]
[1721241837156,0.025,64624.0,64623.0,1.76353879]
[1721241837581,0.025,64624.0,64623.0,1.77753879]
[1721241838318,0.025,64624.0,64623.0,1.43798574]
[1721241838522,0.025,64624.0,64623.0,1.77755144]
[1721241840957,0.025,64624.0,64623.0,1.43798574]
[1721241841278,0.025,64624.0,64623.0,1.77754949]
[1721241841452,0.025,64624.0,64623.0,1.43798574]
[1721241841791,0.025,64624.0,64623.0,1.58486777]
[1721241841953,0.025,64624.0,64623.0,1.77755011]
[1721241842174,0.025,64624.0,64623.0,1.58486777]
[1721241842384,0.025,64624.0,64623.0,1.77755011]
[1721241842583,0.025,64624.0,64623.0,1.58486883]
[1721241842760,0.025,64624.0,64623.0,1.77755215]
[1721241842959,0.025,64624.0,64623.0,1.58486883]
[1721241843260,0.025,64624.0,64623.0,1.77755215]
[1721241843492,0.025,64624.0,64623.0,1.58486883]
[1721241843661,0.025,64624.0,64623.0,1.77755215]
[1721241844005,0.025,64624.0,64623.0,1.77755198]
[1721241845527,0.025,64624.0,64623.0,1.99835198]
[1721241846345,0.025,64624.0,64623.0,2.98691161]
[1721241847206,0.025,64624.0,64623.0,2.97288266]
[1721241847767,0.025,64624.0,64623.0,2.98688266]
[1721241849669,0.025,64624.0,64623.0,2.30688266]
[1721241850088,0.025,64624.0,64623.0,2.35281641]
[1721241850449,0.025,64624.0,64623.0,2.3528164]
[1721241850624,0.025,64624.0,64623.0,3.1328164]
[1721241850826,0.025,64624.0,64623.0,3.13281496]
[1721241851800,0.025,64624.0,64623.0,2.81170505]
[1721241852004,0.025,64624.0,64623.0,3.13281496]
[1721241852243,0.025,64624.0,64623.0,3.15578112]
[1721241852447,0.025,64624.0,64623.0,3.80823825]
[1721241852623,0.025,64624.0,64623.0,3.99175173]
[1721241852828,0.00748633,64625.0,64624.0,1.896451]
[1721241853028,0.00834,64637.0,64624.0,1.896451]
[1721241853029,0.00834,64637.0,64630.0,1.166932]
[1721241853232,0.00834,64637.0,64630.0,4.6930361]
[1721241853453,0.00834,64637.0,64630.0,5.03994186]
[1721241853697,0.00834,64637.0,64630.0,5.57549776]
[1721241854247,0.00834,64637.0,64630.0,5.6443116]
[1721241854445,0.00834,64637.0,64630.0,5.6583116]
[1721241854855,0.00834,64637.0,64630.0,4.5728586]
[1721241855058,0.00834,64637.0,64630.0,3.08057424]
[1721241855259,0.00834,64637.0,64630.0,2.50057424]
[1721241856090,0.00834,64637.0,64630.0,2.45057424]
[1721241856297,0.00834,64637.0,64630.0,3.32297424]
[1721241856475,0.00834,64637.0,64630.0,2.95191974]
[1721241856670,0.00834,64637.0,64630.0,3.27299339]
[1721241856873,0.00834,64637.0,64630.0,3.32299339]
[1721241857477,0.00834,64637.0,64630.0,3.36886742]
[1721241857697,0.00834,64637.0,64630.0,3.36885062]
[1721241858637,0.00834,64637.0,64630.0,3.35885062]
[1721241859175,0.00834,64637.0,64630.0,4.81297659]
[1721241859577,0.00834,64637.0,64630.0,4.49191974]
[1721241859931,0.00834,64637.0,64630.0,4.85883585]
[1721241860134,0.00834,64637.0,64630.0,4.53777871]
[1721241860338,0.00834,64637.0,64630.0,4.81297797]
[1721241861365,0.00834,64637.0,64630.0,4.49191974]
[1721241861616,0.00834,64637.0,64630.0,4.59227799]
[1721241861805,0.00834,64637.0,64630.0,4.81297799]
[1721241862605,0.00834,64637.0,64630.0,4.8588307]
[1721241864525,0.0147406,64631.0,64630.0,4.85882886]
[1721241864680,0.0147406,64631.0,64630.0,4.80882886]
[1721241864879,0.0147406,64631.0,64630.0,4.85882886]
[1721241865946,0.0147406,64631.0,64630.0,4.81297615]
[1721241866212,0.0147406,64631.0,64630.0,4.81297814]
[1721241867600,0.0147406,64631.0,64630.0,4.85883285]
[1721241868527,0.0147406,64631.0,64630.0,4.80883285]
[1721241868795,0.0147406,64631.0,64630.0,4.76297814]
[1721241869481,0.0147406,64631.0,64630.0,4.80883529]
[1721241869719,0.0147406,64631.0,64630.0,4.76297895]
[1721241869942,0.0147406,64631.0,64630.0,4.85884182]
[1721241870613,0.0147406,64631.0,64630.0,4.80884182]
[1721241871075,0.0147406,64631.0,64630.0,4.80884808]
[1721241871567,0.0147406,64631.0,64630.0,4.81297875]
[1721241872492,0.0147406,64631.0,64630.0,4.81297716]
[1721241873426,0.0147406,64631.0,64630.0,4.97350587]
[1721241874538,0.0097406,64631.0,64630.0,5.04231895]
[1721241875961,0.0097406,64631.0,64630.0,5.04233329]
[1721241876448,0.0097406,64631.0,64630.0,4.90993329]
[1721241876726,0.0097406,64631.0,64630.0,5.25285962]
[1721241876989,0.0097406,64631.0,64630.0,1.90952415]
[1721241877223,0.0097406,64631.0,64630.0,1.57707115]
[1721241877471,0.1529406,64631.0,64630.0,0.4655307]
[1721241877724,0.1529406,64631.0,64630.0,0.3108047]
[1721241878444,0.1529406,64631.0,64630.0,0.2968047]
[1721241878699,0.1529406,64631.0,64630.0,0.3078047]
[1721241878934,0.1529406,64631.0,64630.0,0.2828482]
[1721241879166,0.1529406,64631.0,64630.0,0.76102702]
[1721241879661,0.1529406,64631.0,64630.0,0.74702524]
[1721241879899,0.1529406,64631.0,64630.0,0.75302524]
[1721241880389,0.1529406,64631.0,64630.0,0.76102524]
[1721241881799,0.1529406,64631.0,64630.0,0.45157224]
[1721241882025,0.1529406,64631.0,64630.0,0.29684624]
[1721241885109,0.1279406,64631.0,64630.0,0.29684624]
[1721241885331,0.1279406,64631.0,64630.0,0.16838174]
[1721241885675,0.1279406,64631.0,64630.0,0.014]
[1721241886080,0.14225739,64631.0,64630.0,0.014]
[1721241886283,0.29698139,64631.0,64630.0,0.014]
[1721241886694,0.60643039,64631.0,64630.0,0.014]
[1721241886890,0.29698139,64631.0,64630.0,0.014]
[1721241887101,0.29698139,64631.0,64630.0,0.006]
[1721241887532,0.29698139,64631.0,64630.0,0.008]
[1721241887698,0.29698139,64631.0,64630.0,0.006]
[1721241888110,0.14225739,64631.0,64630.0,0.001]
[1721241888316,0.14505139,64631.0,64630.0,0.001]
[1721241888575,0.14225739,64631.0,64630.0,0.002]
[1721241888977,0.14225739,64631.0,64630.0,0.001]
[1721241889871,0.1279406,64631.0,64630.0,0.001]
[1721241890220,0.13975784,64631.0,64630.0,0.001]
[1721241890400,0.1279406,64631.0,64630.0,0.001]
[1721241890605,0.13975784,64631.0,64630.0,0.001]
[1721241892379,0.1279406,64631.0,64630.0,0.001]
[1721241900828,0.13775764,64631.0,64630.0,0.001]
[1721241901156,0.1279406,64631.0,64630.0,0.001]
[1721241903814,0.1377449,64631.0,64630.0,0.001]
[1721241905355,0.002794,64635.0,64630.0,0.001]
[1721241905719,0.0098043,64631.0,64630.0,0.001]
[1721241905922,0.002794,64635.0,64630.0,0.001]
[1721241906122,0.002794,64635.0,64631.0,0.128468]
[1721241906325,0.0098043,64634.0,64632.0,0.128468]
[1721241906514,0.002794,64633.0,64630.0,0.001]
[1721241906711,0.002794,64633.0,64631.0,0.30910474]
[1721241906939,0.002794,64633.0,64632.0,0.28318327]
[1721241907178,0.003794,64635.0,64632.0,0.28284301]
[1721241907379,0.003794,64635.0,64633.0,0.12846151]
[1721241907380,0.005794,64635.0,64633.0,0.12846151]
[1721241907581,0.003,64635.0,64634.0,0.12846151]
[1721241907727,0.002,64635.0,64634.0,0.12846151]
[1721241908129,0.141,64636.0,64634.0,0.12846151]
[1721241908369,0.002794,64635.0,64632.0,0.15438174]
[1721241908568,0.002794,64635.0,64633.0,0.12846185]
[1721241908714,0.002794,64635.0,64634.0,0.13146185]
[1721241909111,0.6204413,64635.0,64634.0,0.003]
[1721241909317,0.9770763,64635.0,64634.0,0.003]
[1721241909559,0.9270763,64635.0,64634.0,0.003]
[1721241909765,0.9770763,64635.0,64634.0,0.003]
[1721241910067,0.9270763,64635.0,64634.0,0.003]
[1721241910307,0.9300763,64635.0,64634.0,0.003]
[1721241910468,0.9270763,64635.0,64634.0,0.003]
[1721241910868,0.154721,64633.0,64625.0,0.000913]
[1721241911067,0.1404,64632.0,64626.0,0.12848041]
[1721241911296,0.1529848,64632.0,64627.0,0.12848041]
[1721241911494,0.1529848,64632.0,64628.0,0.12848041]
[1721241911713,0.1529848,64632.0,64625.0,0.000913]
[1721241911909,0.1529848,64632.0,64626.0,0.12847887]
[1721241912128,0.1529848,64632.0,64627.0,0.12847887]
[1721241912337,0.1529848,64632.0,64628.0,0.12847887]
[1721241912572,0.1529848,64632.0,64625.0,0.000913]
[1721241912729,0.1529848,64632.0,64626.0,0.12848097]
[1721241912895,0.1539848,64632.0,64627.0,0.12848097]
[1721241913093,0.1539848,64632.0,64625.0,0.000913]
[1721241913322,0.1539848,64632.0,64626.0,0.25696194]
[1721241913525,0.1539848,64632.0,64627.0,0.12848097]
[1721241913728,0.1539848,64632.0,64626.0,0.12848097]
[1721241913932,0.1539848,64632.0,64627.0,0.12848097]
[1721241914215,0.1539848,64632.0,64626.0,0.12848097]
[1721241914441,0.1539848,64632.0,64627.0,0.12848097]
[1721241914647,0.1539848,64632.0,64626.0,0.12848097]
[1721241914848,0.0904848,64632.0,64627.0,0.12848097]
[1721241915193,0.002794,64629.0,64626.0,0.12848097]
[1721241915321,0.002794,64629.0,64627.0,0.12848097]
[1721241915519,0.002794,64629.0,64626.0,0.12848097]
[1721241915875,0.00973442,64628.0,64627.0,0.12848097]
[1721241917336,0.07133442,64628.0,64627.0,0.12848097]
[1721241917527,0.07133442,64628.0,64627.0,0.13048097]
[1721241918056,0.30545942,64628.0,64625.0,0.000913]
[1721241918259,0.0616,64627.0,64625.0,0.000913]
[1721241918481,0.167794,64626.0,64625.0,0.000913]
[1721241918838,0.39107042,64626.0,64625.0,0.000913]
[1721241919323,1.01001442,64626.0,64625.0,0.000913]
[1721241919513,0.70054242,64626.0,64625.0,0.000913]
[1721241920144,0.39107042,64626.0,64625.0,0.000913]
[1721241920343,0.14793442,64626.0,64625.0,0.003913]
[1721241920750,0.15193442,64626.0,64625.0,0.000913]
[1721241920953,0.01373442,64626.0,64625.0,0.000913]
[1721241921175,0.01073442,64626.0,64625.0,0.000913]
[1721241921701,0.00973442,64626.0,64625.0,0.000913]
[1721241922189,0.002794,64628.0,64625.0,0.002913]
[1721241922387,0.00973442,64626.0,64625.0,0.002913]
[1721241922600,0.002794,64628.0,64625.0,0.002913]
[1721241922765,0.00973442,64626.0,64625.0,0.002913]
[1721241922964,0.005,64626.0,64625.0,0.002913]
[1721241923171,0.01473442,64626.0,64625.0,0.002913]
[1721241923378,0.01473442,64626.0,64625.0,0.000913]
[1721241923773,0.23297042,64626.0,64625.0,0.000913]
[1721241924120,0.61984242,64626.0,64625.0,0.000913]
[1721241924679,0.61984242,64626.0,64625.0,0.003913]
[1721241924890,1.23878642,64626.0,64625.0,0.002913]
[1721241925107,1.8493658,64626.0,64625.0,0.000913]
[1721241925320,1.88184932,64626.0,64625.0,0.000913]
[1721241925527,1.87784932,64626.0,64625.0,0.000913]
[1721241925743,1.88284932,64626.0,64625.0,0.000913]
[1721241926189,2.01695759,64626.0,64625.0,0.000913]
[1721241926404,2.05519889,64626.0,64625.0,0.000913]
[1721241926776,2.05419889,64626.0,64625.0,0.000913]
[1721241927159,1.89984932,64626.0,64625.0,0.000913]
[1721241927566,1.90484932,64626.0,64625.0,0.001913]
[1721241927761,1.90084932,64626.0,64625.0,0.000913]
[1721241928166,1.90384932,64626.0,64625.0,0.001913]
[1721241928482,1.90084932,64626.0,64625.0,0.001913]
[1721241928918,1.90484932,64626.0,64625.0,0.002913]
[1721241929031,1.90484932,64626.0,64625.0,0.001913]
[1721241929238,2.05919889,64626.0,64625.0,0.002913]
[1721241929437,2.06319889,64626.0,64625.0,0.002913]
[1721241929858,2.06219889,64626.0,64625.0,0.001913]
[1721241930056,2.06219889,64626.0,64625.0,0.002913]
[1721241930280,2.06319889,64626.0,64625.0,0.002913]
[1721241930481,2.05519889,64626.0,64625.0,0.001913]
[1721241930891,2.36867089,64626.0,64625.0,0.002913]
[1721241931098,0.965757,64603.0,64602.0,0.000913]
[1721241931300,1.96020474,64603.0,64602.0,0.000913]
[1721241931501,2.10649977,64603.0,64602.0,0.000913]
[1721241931700,2.06848137,64603.0,64602.0,0.000913]
[1721241931947,0.07769479,64603.0,64602.0,0.000913]
[1721241932158,0.01491115,64603.0,64602.0,0.000913]
[1721241932355,0.309577,64605.0,64602.0,0.000913]
[1721241932557,0.777957,64603.0,64602.0,0.001913]
[1721241932757,0.468374,64603.0,64602.0,0.001913]
[1721241933548,0.48032226,64603.0,64602.0,0.001913]
[1721241933743,0.16673926,64603.0,64602.0,0.004913]
[1721241933955,0.154791,64603.0,64602.0,0.004913]
[1721241934149,0.168791,64603.0,64602.0,0.005913]
[1721241934354,0.168791,64603.0,64602.0,0.000913]
[1721241934574,0.173791,64603.0,64602.0,0.000913]
[1721241934794,0.177791,64603.0,64602.0,0.000913]
[1721241935363,0.487374,64603.0,64602.0,0.000913]
[1721241935563,0.49933388,64603.0,64602.0,0.000913]
[1721241936986,0.18975088,64603.0,64602.0,0.000913]
[1721241937165,0.177791,64603.0,64602.0,0.000913]
[1721241938821,0.487374,64603.0,64602.0,0.000913]
[1721241939425,0.796957,64603.0,64602.0,0.000913]
[1721241939581,1.31239988,64603.0,64602.0,0.000913]
[1721241940948,1.46678162,64603.0,64602.0,0.000913]
[1721241941158,1.56678162,64603.0,64602.0,0.000913]
[1721241942116,1.54878162,64603.0,64602.0,0.000913]
[1721241942312,1.56278162,64603.0,64602.0,0.001913]
[1721241942836,1.55778162,64603.0,64602.0,0.001913]
[1721241943656,1.57178162,64603.0,64602.0,0.002913]
[1721241944256,1.55778162,64603.0,64602.0,0.001913]
[1721241944655,1.57178162,64603.0,64602.0,0.001913]
[1721241946586,1.72613119,64603.0,64602.0,0.001913]
[1721241946793,1.05781688,64603.0,64602.0,0.001913]
[1721241947130,1.10781688,64603.0,64602.0,0.001913]
[1721241947330,1.41739988,64603.0,64602.0,0.001913]
[1721241947758,1.57178162,64603.0,64602.0,0.001913]
[1721241949169,1.71885254,64603.0,64602.0,0.001913]
[1721241949371,2.02843554,64603.0,64602.0,0.001913]
[1721241953349,2.05143554,64603.0,64602.0,0.001913]
[1721241953615,0.05,64601.0,64600.0,4.98640356]
[1721241953780,2.24189353,64601.0,64600.0,4.98640356]
[1721241953979,2.24189353,64601.0,64600.0,1.12134357]
[1721241953980,2.79244646,64601.0,64600.0,1.12134357]
[1721241954195,2.98086784,64601.0,64600.0,1.12134357]
[1721241954384,2.86482285,64601.0,64600.0,1.12134357]
[1721241954583,3.12082347,64601.0,64600.0,1.12134357]
[1721241954781,3.34172347,64601.0,64600.0,1.12134357]
[1721241955012,3.42208198,64601.0,64600.0,1.12134357]
[1721241955273,3.28965246,64601.0,64600.0,1.06843531]
[1721241955425,4.14392595,64601.0,64600.0,1.06843531]
[1721241955601,4.17508056,64601.0,64600.0,1.06943531]
[1721241955805,4.29064541,64601.0,64600.0,1.06843531]
[1721241956032,4.29064541,64601.0,64581.0,0.000913]
[1721241956033,2.062939,64582.0,64581.0,1e-06]
[1721241956260,2.54273666,64582.0,64581.0,1e-06]
[1721241956500,2.65430312,64582.0,64581.0,1e-06]
[1721241956702,2.67730312,64582.0,64581.0,1e-06]
[1721241957912,2.69130312,64582.0,64581.0,1e-06]
[1721241958120,2.61101063,64582.0,64581.0,1e-06]
[1721241958335,1.96864463,64582.0,64581.0,1e-06]
[1721241958548,1.31653233,64582.0,64581.0,1e-06]
[1721241958749,1.3138382,64582.0,64581.0,1e-06]
[1721241958950,1.2638382,64582.0,64581.0,1e-06]
[1721241959151,1.25976134,64582.0,64581.0,1e-06]
[1721241959364,1.32376134,64582.0,64581.0,1e-06]
[1721241959582,1.63344434,64582.0,64581.0,1e-06]
[1721241959809,1.61944434,64582.0,64581.0,1e-06]
[1721241960236,1.63344434,64582.0,64581.0,1e-06]
[1721241960445,1.71944434,64582.0,64581.0,1e-06]
[1721241960648,1.75644434,64582.0,64581.0,1e-06]
[1721241960799,1.40976134,64582.0,64581.0,1e-06]
[1721241961213,1.42376134,64582.0,64581.0,1e-06]
[1721241961394,1.41627174,64582.0,64581.0,1e-06]
[1721241962467,1.72595474,64582.0,64581.0,1e-06]
[1721241962730,1.74895474,64582.0,64581.0,1e-06]
[1721241971121,1.36627174,64582.0,64581.0,0.140301]
[1721241971538,1.41627174,64582.0,64581.0,0.140301]
[1721241971735,1.41627174,64582.0,64581.0,1e-06]
[1721241972708,1.43927174,64582.0,64581.0,1e-06]
[1721241973010,1.74895474,64582.0,64581.0,1e-06]
[1721241974206,1.72595474,64582.0,64581.0,1e-06]
[1721241975056,1.36627174,64582.0,64581.0,1e-06]
[1721241975264,1.36627174,64582.0,64581.0,0.139101]
[1721241975265,1.05658874,64582.0,64581.0,0.139101]
[1721241975665,1.36627174,64582.0,64581.0,0.139101]
[1721241978063,1.05658874,64582.0,64581.0,0.139101]
[1721241978279,0.282841,64582.0,64581.0,0.139101]
[1721241978652,0.182841,64582.0,64581.0,0.139101]
[1721241978878,0.492524,64582.0,64581.0,0.139101]
[1721241979148,0.028,64582.0,64581.0,0.139101]
[1721241979346,0.168841,64582.0,64581.0,0.139101]
[1721241979562,0.478524,64582.0,64581.0,0.139101]
[1721241979766,0.492524,64582.0,64581.0,0.139101]
[1721241979973,0.478524,64582.0,64581.0,0.139101]
[1721241980099,0.027,64582.0,64581.0,0.1751011]
[1721241980507,0.027,64582.0,64581.0,0.139101]
[1721241985357,0.014,64582.0,64581.0,0.139101]
[1721241985569,0.309658,64588.0,64582.0,0.1448]
[1721241985570,0.154833,64586.0,64582.0,0.1448]
[1721241985784,0.002794,64585.0,64582.0,0.1448]
[1721241985986,0.157628,64585.0,64584.0,0.0629]
[1721241986195,0.154834,64585.0,64584.0,0.1448]
[1721241987477,0.464503,64585.0,64584.0,0.1448]
[1721241987598,0.467503,64585.0,64584.0,0.1448]
[1721241988114,0.469503,64585.0,64584.0,0.1448]
[1721241988452,0.005,64585.0,64584.0,0.1448]
[1721241988633,0.159834,64585.0,64584.0,0.1448]
[1721241988829,0.154834,64585.0,64584.0,0.1448]
[1721241989032,0.154833,64586.0,64583.0,0.1453]
[1721241989247,0.162629,64585.0,64582.0,0.1453]
[1721241989726,0.162629,64585.0,64583.0,0.0663]
[1721241989921,0.159629,64585.0,64584.0,0.1453]
[1721241990121,0.156835,64585.0,64584.0,0.1463]
[1721241990461,0.466504,64585.0,64584.0,0.1463]
[1721241990693,0.464504,64585.0,64584.0,0.1453]
[1721241992926,0.464504,64585.0,64584.0,0.1463]
[1721241995532,0.154835,64585.0,64584.0,0.1463]
[1721241995935,0.04627036,64594.0,64584.0,0.1463]
[1721241995936,0.04627036,64595.0,64585.0,0.1422]
[1721241996134,0.1156759,64600.0,64586.0,0.1433]
[1721241996135,0.002794,64594.0,64586.0,0.1433]